[Event "Titled Tuesday Blitz February 07 Late 2023"]
[White "Fedoseev, Vladimir"]
[Black "Mikaelyan, Arman"]
[WhiteFideId "24130737"]
[BlackFideId "13304852"]
[WhiteElo "2680"]
[BlackElo "2523"]
[Result "1/2-1/2"]
[Round "09"]
[TimeControl "180+2"]
[Date "2023.02.07"]
[WhiteClock "0:00:03"]
[BlackClock "0:00:13"]

1. Nf3 {[%clk 0:03:00]}  g6 {[%clk 0:02:57]} 2. d4 {[%clk 0:02:59]}  Bg7 {[%clk 0:02:57]} 3. e4 {[%clk 0:02:59]}  d6 {[%clk 0:02:57]} 4. Bc4 {[%clk 0:02:58]}  c6 {[%clk 0:02:52]} 5. Bb3 {[%clk 0:02:57]}  Nf6 {[%clk 0:02:46]} 6. Qe2 {[%clk 0:02:57]}  a5 {[%clk 0:02:43]} 7. a4 {[%clk 0:02:56]}  O-O {[%clk 0:02:42]} 8. O-O {[%clk 0:02:53]}  Bg4 {[%clk 0:02:42]} 9. Nbd2 {[%clk 0:02:50]}  Nbd7 {[%clk 0:02:31]} 10. h3 {[%clk 0:02:50]}  Bxf3 {[%clk 0:02:31]} 11. Nxf3 {[%clk 0:02:51]}  d5 {[%clk 0:02:18]} 12. e5 {[%clk 0:02:40]}  Ne4 {[%clk 0:02:18]} 13. c3 {[%clk 0:02:39]}  Kh8 {[%clk 0:02:03]} 14. Bc2 {[%clk 0:02:34]}  f5 {[%clk 0:02:02]} 15. exf6 {[%clk 0:02:23]}  exf6 {[%clk 0:02:01]} 16. Bf4 {[%clk 0:01:51]}  Qb6 {[%clk 0:01:56]} 17. Bd3 {[%clk 0:01:44]}  Rfe8 {[%clk 0:01:54]} 18. Qc2 {[%clk 0:01:44]}  Re7 {[%clk 0:01:41]} 19. c4 {[%clk 0:01:41]}  f5 {[%clk 0:01:32]} 20. cxd5 {[%clk 0:01:36]}  cxd5 {[%clk 0:01:32]} 21. Rfc1 {[%clk 0:01:26]}  Rae8 {[%clk 0:01:22]} 22. Bb5 {[%clk 0:01:22]}  Nd6 {[%clk 0:00:56]} 23. Bd3 {[%clk 0:00:56]}  Rc8 {[%clk 0:00:46]} 24. Qxc8+ {[%clk 0:00:35]}  Nxc8 {[%clk 0:00:47]} 25. Rxc8+ {[%clk 0:00:34]}  Nf8 {[%clk 0:00:46]} 26. Bb5 {[%clk 0:00:35]}  h6 {[%clk 0:00:41]} 27. Rac1 {[%clk 0:00:32]}  Kh7 {[%clk 0:00:37]} 28. Bc7 {[%clk 0:00:31]}  Qe6 {[%clk 0:00:35]} 29. Bxa5 {[%clk 0:00:30]}  g5 {[%clk 0:00:33]} 30. Bb4 {[%clk 0:00:28]}  Rf7 {[%clk 0:00:27]} 31. Re8 {[%clk 0:00:25]}  Qb6 {[%clk 0:00:25]} 32. Bc5 {[%clk 0:00:19]}  Qc7 {[%clk 0:00:25]} 33. Rce1 {[%clk 0:00:18]}  Ng6 {[%clk 0:00:25]} 34. R1e6 {[%clk 0:00:12]}  g4 {[%clk 0:00:24]} 35. hxg4 {[%clk 0:00:11]}  fxg4 {[%clk 0:00:25]} 36. Bd3 {[%clk 0:00:09]}  Rf6 {[%clk 0:00:23]} 37. Ne5 {[%clk 0:00:06]}  Rxe6 {[%clk 0:00:19]} 38. Rxe6 {[%clk 0:00:07]}  Bxe5 {[%clk 0:00:20]} 39. Bxg6+ {[%clk 0:00:04]}  Kg7 {[%clk 0:00:17]} 40. Bh5 {[%clk 0:00:02]}  Bf6 {[%clk 0:00:16]} 41. Bxg4 {[%clk 0:00:03]}  Qf4 {[%clk 0:00:15]} 42. Bf3 {[%clk 0:00:03]}  Qc1+ {[%clk 0:00:13]} 43. Kh2 {[%clk 0:00:03]}  Qf4+ {[%clk 0:00:14]} 44. Kg1 {[%clk 0:00:03]}  Qc1+ {[%clk 0:00:12]} 45. Kh2 {[%clk 0:00:03]}  Qf4+ {[%clk 0:00:13]} 46. Kg1 {[%clk 0:00:03]} 1/2-1/2


[Site "https://www.chess.com"]

[Event "Titled Tuesday Blitz February 07 Late 2023"]
[White "Gadimbayli, Abdulla"]
[Black "Bortnyk, Olexandr"]
[WhiteFideId "13404938"]
[BlackFideId "14120828"]
[WhiteElo "2500"]
[BlackElo "2605"]
[Result "0-1"]
[Round "09"]
[TimeControl "180+2"]
[Date "2023.02.07"]
[WhiteClock "0:00:02"]
[BlackClock "0:00:43"]

1. e4 {[%clk 0:03:00]}  Nf6 {[%clk 0:02:55]} 2. e5 {[%clk 0:02:57]}  Nd5 {[%clk 0:02:55]} 3. d4 {[%clk 0:02:58]}  d6 {[%clk 0:02:55]} 4. Nf3 {[%clk 0:02:58]}  dxe5 {[%clk 0:02:55]} 5. Nxe5 {[%clk 0:02:59]}  c6 {[%clk 0:02:56]} 6. Bc4 {[%clk 0:02:59]}  Nd7 {[%clk 0:02:55]} 7. O-O {[%clk 0:02:58]}  Nxe5 {[%clk 0:02:55]} 8. dxe5 {[%clk 0:02:59]}  Bf5 {[%clk 0:02:52]} 9. Qe2 {[%clk 0:02:57]}  e6 {[%clk 0:02:52]} 10. c3 {[%clk 0:02:56]}  Qh4 {[%clk 0:02:45]} 11. Nd2 {[%clk 0:02:48]}  Nf4 {[%clk 0:02:41]} 12. Qe3 {[%clk 0:02:46]}  Rd8 {[%clk 0:02:10]} 13. g3 {[%clk 0:01:38]}  Nh3+ {[%clk 0:01:53]} 14. Kg2 {[%clk 0:01:38]}  Qh5 {[%clk 0:01:43]} 15. Be2 {[%clk 0:00:43]}  Qg6 {[%clk 0:01:40]} 16. Nb3 {[%clk 0:00:43]}  h5 {[%clk 0:01:31]} 17. f3 {[%clk 0:00:30]}  b6 {[%clk 0:01:22]} 18. Nd4 {[%clk 0:00:24]}  Bc5 {[%clk 0:01:21]} 19. b4 {[%clk 0:00:24]}  Bxd4 {[%clk 0:01:16]} 20. cxd4 {[%clk 0:00:25]}  O-O {[%clk 0:01:09]} 21. Rd1 {[%clk 0:00:25]}  f6 {[%clk 0:01:06]} 22. exf6 {[%clk 0:00:19]}  Rxf6 {[%clk 0:01:06]} 23. Qe5 {[%clk 0:00:09]}  Rd5 {[%clk 0:00:58]} 24. Qb8+ {[%clk 0:00:09]}  Kh7 {[%clk 0:00:58]} 25. Be3 {[%clk 0:00:09]}  Ng5 {[%clk 0:00:52]} 26. h4 {[%clk 0:00:04]}  Bh3+ {[%clk 0:00:51]} 27. Kh2 {[%clk 0:00:04]}  Nxf3+ {[%clk 0:00:51]} 28. Bxf3 {[%clk 0:00:04]}  Rxf3 {[%clk 0:00:52]} 29. Bf4 {[%clk 0:00:03]}  Rf2+ {[%clk 0:00:48]} 30. Kg1 {[%clk 0:00:02]}  Rg2+ {[%clk 0:00:43]} 0-1


[Site "https://www.chess.com"]

[Event "Titled Tuesday Blitz February 07 Late 2023"]
[White "Dominguez Perez, Leinier"]
[Black "Kosakowski, Jakub"]
[WhiteFideId "3503240"]
[BlackFideId "1185080"]
[WhiteElo "2739"]
[BlackElo "2485"]
[Result "1/2-1/2"]
[Round "09"]
[TimeControl "180+2"]
[Date "2023.02.07"]
[WhiteClock "0:00:12"]
[BlackClock "0:00:04"]

1. d4 {[%clk 0:03:00]}  Nf6 {[%clk 0:02:59]} 2. Nf3 {[%clk 0:03:00]}  e6 {[%clk 0:02:59]} 3. e3 {[%clk 0:03:00]}  b6 {[%clk 0:02:58]} 4. Bd3 {[%clk 0:03:00]}  Bb7 {[%clk 0:02:59]} 5. O-O {[%clk 0:03:01]}  d5 {[%clk 0:02:59]} 6. b3 {[%clk 0:03:00]}  Bd6 {[%clk 0:03:00]} 7. c4 {[%clk 0:03:01]}  O-O {[%clk 0:02:59]} 8. cxd5 {[%clk 0:03:02]}  exd5 {[%clk 0:03:00]} 9. Ba3 {[%clk 0:03:02]}  c5 {[%clk 0:03:01]} 10. Nc3 {[%clk 0:03:02]}  Nbd7 {[%clk 0:03:00]} 11. Qe2 {[%clk 0:03:01]}  Qe7 {[%clk 0:02:59]} 12. Rac1 {[%clk 0:03:00]}  Rfe8 {[%clk 0:02:58]} 13. Rfd1 {[%clk 0:02:59]}  c4 {[%clk 0:02:47]} 14. Bxd6 {[%clk 0:02:45]}  cxd3 {[%clk 0:02:47]} 15. Bxe7 {[%clk 0:02:44]}  dxe2 {[%clk 0:02:46]} 16. Nxe2 {[%clk 0:02:42]}  Rxe7 {[%clk 0:02:45]} 17. Rc7 {[%clk 0:02:43]}  Rb8 {[%clk 0:02:39]} 18. Ne5 {[%clk 0:02:39]}  Kf8 {[%clk 0:02:22]} 19. Nd3 {[%clk 0:02:39]}  Ne8 {[%clk 0:02:12]} 20. Rc3 {[%clk 0:02:37]}  Rc8 {[%clk 0:02:11]} 21. Rdc1 {[%clk 0:02:37]}  Rxc3 {[%clk 0:02:11]} 22. Rxc3 {[%clk 0:02:37]}  Ba6 {[%clk 0:02:09]} 23. Nef4 {[%clk 0:02:32]}  Bxd3 {[%clk 0:02:08]} 24. Nxd5 {[%clk 0:02:31]}  Re6 {[%clk 0:02:03]} 25. Rxd3 {[%clk 0:02:30]}  Rc6 {[%clk 0:02:03]} 26. Rc3 {[%clk 0:02:20]}  Rxc3 {[%clk 0:01:49]} 27. Nxc3 {[%clk 0:02:21]}  Nc7 {[%clk 0:01:49]} 28. f3 {[%clk 0:02:18]}  b5 {[%clk 0:01:47]} 29. Kf2 {[%clk 0:02:09]}  b4 {[%clk 0:01:46]} 30. Na4 {[%clk 0:02:06]}  Nb6 {[%clk 0:01:43]} 31. Nc5 {[%clk 0:01:52]}  Nb5 {[%clk 0:01:39]} 32. Na6 {[%clk 0:01:46]}  Nd5 {[%clk 0:01:32]} 33. e4 {[%clk 0:01:45]}  Ndc3 {[%clk 0:01:28]} 34. Nxb4 {[%clk 0:01:42]}  Nxd4 {[%clk 0:01:11]} 35. Ke3 {[%clk 0:01:42]}  Ne6 {[%clk 0:01:04]} 36. a4 {[%clk 0:01:37]}  Ke7 {[%clk 0:00:55]} 37. Nc6+ {[%clk 0:01:32]}  Kd6 {[%clk 0:00:54]} 38. Nxa7 {[%clk 0:01:32]}  Kc5 {[%clk 0:00:54]} 39. Nc8 {[%clk 0:01:18]}  Na2 {[%clk 0:00:50]} 40. f4 {[%clk 0:01:09]}  Nb4 {[%clk 0:00:47]} 41. f5 {[%clk 0:01:04]}  Nd4 {[%clk 0:00:46]} 42. g4 {[%clk 0:00:54]}  f6 {[%clk 0:00:44]} 43. h4 {[%clk 0:00:53]}  Nxb3 {[%clk 0:00:43]} 44. g5 {[%clk 0:00:52]}  Na5 {[%clk 0:00:40]} 45. e5 {[%clk 0:00:27]}  Nc4+ {[%clk 0:00:38]} 46. Ke4 {[%clk 0:00:26]}  Nxe5 {[%clk 0:00:38]} 47. a5 {[%clk 0:00:26]}  Nec6 {[%clk 0:00:30]} 48. gxf6 {[%clk 0:00:21]}  gxf6 {[%clk 0:00:30]} 49. Nb6 {[%clk 0:00:22]}  Kd6 {[%clk 0:00:19]} 50. Nc4+ {[%clk 0:00:21]}  Ke7 {[%clk 0:00:17]} 51. h5 {[%clk 0:00:21]}  h6 {[%clk 0:00:17]} 52. Kf4 {[%clk 0:00:19]}  Kd7 {[%clk 0:00:09]} 53. Ne3 {[%clk 0:00:17]}  Nxa5 {[%clk 0:00:08]} 54. Ng4 {[%clk 0:00:17]}  Ke7 {[%clk 0:00:07]} 55. Nxh6 {[%clk 0:00:17]}  Nac6 {[%clk 0:00:07]} 56. Ng4 {[%clk 0:00:17]}  Nd5+ {[%clk 0:00:06]} 57. Ke4 {[%clk 0:00:15]}  Nc7 {[%clk 0:00:05]} 58. h6 {[%clk 0:00:15]}  Kf7 {[%clk 0:00:04]} 59. h7 {[%clk 0:00:15]}  Kg7 {[%clk 0:00:04]} 60. Nxf6 {[%clk 0:00:16]}  Ne7 {[%clk 0:00:04]} 61. Ke5 {[%clk 0:00:13]}  Nxf5 {[%clk 0:00:03]} 62. Kxf5 {[%clk 0:00:12]}  Ne8 {[%clk 0:00:03]} 63. Nxe8+ {[%clk 0:00:12]}  Kxh7 {[%clk 0:00:04]} 1/2-1/2


[Site "https://www.chess.com"]

[Event "Titled Tuesday Blitz February 07 Late 2023"]
[White "Maksimovic, Bojan"]
[Black "Baskakov, Egor"]
[WhiteFideId "14408120"]
[BlackFideId "24197866"]
[WhiteElo "2486"]
[BlackElo "2215"]
[Result "1-0"]
[Round "09"]
[TimeControl "180+2"]
[Date "2023.02.07"]
[WhiteClock "0:00:05"]
[BlackClock "0:01:19"]

1. e4 {[%clk 0:03:00]}  c5 {[%clk 0:02:59]} 2. Nf3 {[%clk 0:03:00]}  Nf6 {[%clk 0:03:00]} 3. e5 {[%clk 0:03:01]}  Nd5 {[%clk 0:03:00]} 4. Nc3 {[%clk 0:03:01]}  e6 {[%clk 0:03:00]} 5. Ne4 {[%clk 0:03:01]}  Nc6 {[%clk 0:03:01]} 6. c4 {[%clk 0:03:01]}  f5 {[%clk 0:03:01]} 7. cxd5 {[%clk 0:03:01]}  fxe4 {[%clk 0:03:01]} 8. dxc6 {[%clk 0:03:01]}  exf3 {[%clk 0:03:02]} 9. Qxf3 {[%clk 0:03:02]}  dxc6 {[%clk 0:03:03]} 10. Be2 {[%clk 0:02:59]}  Qd4 {[%clk 0:03:00]} 11. Qg3 {[%clk 0:02:58]}  g6 {[%clk 0:02:59]} 12. d3 {[%clk 0:02:52]}  Bg7 {[%clk 0:02:58]} 13. f4 {[%clk 0:02:51]}  Bd7 {[%clk 0:02:51]} 14. Rb1 {[%clk 0:02:42]}  O-O {[%clk 0:02:49]} 15. a3 {[%clk 0:02:09]}  b6 {[%clk 0:02:35]} 16. Be3 {[%clk 0:02:00]}  Qa4 {[%clk 0:02:33]} 17. O-O {[%clk 0:01:53]}  Rad8 {[%clk 0:02:31]} 18. Bf3 {[%clk 0:01:30]}  Bc8 {[%clk 0:02:19]} 19. Be4 {[%clk 0:01:30]}  Ba6 {[%clk 0:02:17]} 20. b3 {[%clk 0:01:31]}  Qa5 {[%clk 0:02:09]} 21. b4 {[%clk 0:01:27]}  cxb4 {[%clk 0:02:00]} 22. axb4 {[%clk 0:01:28]}  Qb5 {[%clk 0:02:00]} 23. Rfc1 {[%clk 0:01:19]}  Rxd3 {[%clk 0:01:55]} 24. Bxc6 {[%clk 0:01:00]}  Rd1+ {[%clk 0:01:52]} 25. Rxd1 {[%clk 0:01:00]}  Qxc6 {[%clk 0:01:52]} 26. Rbc1 {[%clk 0:00:38]}  Qe4 {[%clk 0:01:49]} 27. Rd4 {[%clk 0:00:36]}  Qf5 {[%clk 0:01:48]} 28. Rd7 {[%clk 0:00:32]}  Bxe5 {[%clk 0:01:46]} 29. Rxa7 {[%clk 0:00:25]}  Bb5 {[%clk 0:01:44]} 30. h3 {[%clk 0:00:22]}  Bd6 {[%clk 0:01:37]} 31. Rb7 {[%clk 0:00:19]}  e5 {[%clk 0:01:25]} 32. fxe5 {[%clk 0:00:17]}  Bxe5 {[%clk 0:01:26]} 33. Qf3 {[%clk 0:00:07]}  Qd3 {[%clk 0:01:20]} 34. Qxf8+ {[%clk 0:00:04]}  Kxf8 {[%clk 0:01:19]} 35. Rc8+ {[%clk 0:00:04]}  Be8 {[%clk 0:01:19]} 36. Bh6+ {[%clk 0:00:05]} 1-0


[Site "https://www.chess.com"]

[Event "Titled Tuesday Blitz February 07 Late 2023"]
[White "Pichot, Alan"]
[Black "Darini, Pouria"]
[WhiteFideId "110973"]
[BlackFideId "12502200"]
[WhiteElo "2638"]
[BlackElo "2401"]
[Result "0-1"]
[Round "09"]
[TimeControl "180+2"]
[Date "2023.02.07"]
[WhiteClock "0:01:59"]
[BlackClock "0:00:42"]

1. e4 {[%clk 0:02:55]}  e5 {[%clk 0:02:59]} 2. Nf3 {[%clk 0:02:54]}  Nc6 {[%clk 0:02:59]} 3. Bc4 {[%clk 0:02:54]}  Bc5 {[%clk 0:02:59]} 4. c3 {[%clk 0:02:53]}  Nf6 {[%clk 0:02:59]} 5. d4 {[%clk 0:02:54]}  exd4 {[%clk 0:02:58]} 6. e5 {[%clk 0:02:54]}  d5 {[%clk 0:02:58]} 7. Bb5 {[%clk 0:02:55]}  Ne4 {[%clk 0:02:56]} 8. cxd4 {[%clk 0:02:56]}  Bb6 {[%clk 0:02:57]} 9. Nc3 {[%clk 0:02:56]}  O-O {[%clk 0:02:55]} 10. Be3 {[%clk 0:02:57]}  Bg4 {[%clk 0:02:55]} 11. h3 {[%clk 0:02:57]}  Bh5 {[%clk 0:02:56]} 12. Qc2 {[%clk 0:02:58]}  Bg6 {[%clk 0:02:56]} 13. Qb3 {[%clk 0:02:57]}  Ne7 {[%clk 0:02:53]} 14. O-O {[%clk 0:02:57]}  c6 {[%clk 0:02:38]} 15. Bd3 {[%clk 0:02:58]}  Nxc3 {[%clk 0:02:14]} 16. Qxc3 {[%clk 0:02:58]}  Nf5 {[%clk 0:01:52]} 17. Qc2 {[%clk 0:02:45]}  Nxe3 {[%clk 0:01:23]} 18. fxe3 {[%clk 0:02:46]}  Bxd3 {[%clk 0:01:23]} 19. Qxd3 {[%clk 0:02:46]}  f6 {[%clk 0:01:23]} 20. exf6 {[%clk 0:02:33]}  Qxf6 {[%clk 0:01:10]} 21. Ne5 {[%clk 0:02:34]}  Qe6 {[%clk 0:01:04]} 22. Qb3 {[%clk 0:02:25]}  c5 {[%clk 0:00:46]} 23. Qd3 {[%clk 0:01:58]}  cxd4 {[%clk 0:00:44]} 24. exd4 {[%clk 0:01:59]}  Qxe5 {[%clk 0:00:42]} 0-1


[Site "https://www.chess.com"]

[Event "Titled Tuesday Blitz February 07 Late 2023"]
[White "Becerra, Juan David"]
[Black "Boros, Denes"]
[WhiteFideId "4404998"]
[BlackFideId "722340"]
[WhiteElo "2382"]
[BlackElo "2406"]
[Result "0-1"]
[Round "09"]
[TimeControl "180+2"]
[Date "2023.02.07"]
[WhiteClock "0:00:02"]
[BlackClock "0:00:24"]

1. e4 {[%clk 0:02:59]}  c5 {[%clk 0:02:59]} 2. d4 {[%clk 0:02:56]}  cxd4 {[%clk 0:02:58]} 3. c3 {[%clk 0:02:57]}  d3 {[%clk 0:02:45]} 4. Bxd3 {[%clk 0:02:56]}  Qc7 {[%clk 0:02:45]} 5. Nf3 {[%clk 0:02:55]}  e6 {[%clk 0:02:46]} 6. O-O {[%clk 0:02:55]}  Nc6 {[%clk 0:02:45]} 7. a4 {[%clk 0:02:30]}  Nf6 {[%clk 0:02:40]} 8. Na3 {[%clk 0:02:29]}  d6 {[%clk 0:02:33]} 9. h3 {[%clk 0:02:24]}  Be7 {[%clk 0:02:33]} 10. Bf4 {[%clk 0:02:20]}  a6 {[%clk 0:02:27]} 11. Nc4 {[%clk 0:02:15]}  e5 {[%clk 0:02:23]} 12. Bg5 {[%clk 0:02:11]}  Be6 {[%clk 0:02:20]} 13. Ne3 {[%clk 0:02:10]}  O-O {[%clk 0:02:16]} 14. Nh4 {[%clk 0:02:01]}  g6 {[%clk 0:02:12]} 15. Bh6 {[%clk 0:01:55]}  Rfe8 {[%clk 0:02:12]} 16. Nf3 {[%clk 0:01:56]}  Rad8 {[%clk 0:02:08]} 17. c4 {[%clk 0:01:41]}  Nb4 {[%clk 0:01:57]} 18. Nd5 {[%clk 0:01:36]}  Bxd5 {[%clk 0:01:52]} 19. cxd5 {[%clk 0:01:37]}  Nxd3 {[%clk 0:01:42]} 20. Qxd3 {[%clk 0:01:38]}  Qb6 {[%clk 0:01:40]} 21. b3 {[%clk 0:01:30]}  Qb4 {[%clk 0:01:35]} 22. Rfe1 {[%clk 0:01:25]}  Nd7 {[%clk 0:01:31]} 23. Be3 {[%clk 0:01:07]}  Rc8 {[%clk 0:01:28]} 24. Rec1 {[%clk 0:01:07]}  Nc5 {[%clk 0:01:20]} 25. Bxc5 {[%clk 0:01:04]}  Rxc5 {[%clk 0:01:21]} 26. Rxc5 {[%clk 0:01:03]}  Qxc5 {[%clk 0:01:22]} 27. g3 {[%clk 0:00:54]}  Bd8 {[%clk 0:01:09]} 28. Qc4 {[%clk 0:00:46]}  Bb6 {[%clk 0:00:54]} 29. Qxc5 {[%clk 0:00:45]}  Bxc5 {[%clk 0:00:55]} 30. Kf1 {[%clk 0:00:39]}  h6 {[%clk 0:00:38]} 31. Rc1 {[%clk 0:00:39]}  Kg7 {[%clk 0:00:36]} 32. Ke2 {[%clk 0:00:37]}  f5 {[%clk 0:00:36]} 33. Nd2 {[%clk 0:00:37]}  b5 {[%clk 0:00:34]} 34. g4 {[%clk 0:00:24]}  Kf6 {[%clk 0:00:33]} 35. gxf5 {[%clk 0:00:22]}  gxf5 {[%clk 0:00:34]} 36. exf5 {[%clk 0:00:11]}  e4 {[%clk 0:00:34]} 37. axb5 {[%clk 0:00:09]}  axb5 {[%clk 0:00:35]} 38. Nf1 {[%clk 0:00:04]}  Ra8 {[%clk 0:00:31]} 39. Ne3 {[%clk 0:00:02]}  Ke5 {[%clk 0:00:27]} 40. Rc2 {[%clk 0:00:02]}  h5 {[%clk 0:00:24]} 0-1


[Site "https://www.chess.com"]

[Event "Titled Tuesday Blitz February 07 Late 2023"]
[White "Carlsen, Magnus"]
[Black "Ozates, Tuna"]
[WhiteFideId "1503014"]
[BlackFideId "6354521"]
[WhiteElo "2853"]
[BlackElo "2251"]
[Result "1-0"]
[Round "09"]
[TimeControl "180+2"]
[Date "2023.02.07"]
[WhiteClock "0:01:07"]
[BlackClock "0:00:19"]

1. d4 {[%clk 0:03:00]}  d5 {[%clk 0:02:56]} 2. c4 {[%clk 0:02:59]}  e6 {[%clk 0:02:56]} 3. Nc3 {[%clk 0:02:58]}  Nf6 {[%clk 0:02:56]} 4. Nf3 {[%clk 0:02:56]}  dxc4 {[%clk 0:02:55]} 5. g4 {[%clk 0:02:51]}  c5 {[%clk 0:02:52]} 6. g5 {[%clk 0:02:50]}  Nd5 {[%clk 0:02:50]} 7. Bg2 {[%clk 0:02:50]}  Nc6 {[%clk 0:02:48]} 8. O-O {[%clk 0:02:49]}  Nxc3 {[%clk 0:02:21]} 9. bxc3 {[%clk 0:02:45]}  Be7 {[%clk 0:02:21]} 10. dxc5 {[%clk 0:02:40]}  Qxd1 {[%clk 0:02:19]} 11. Rxd1 {[%clk 0:02:40]}  Bxc5 {[%clk 0:02:20]} 12. Nd2 {[%clk 0:02:40]}  Ne5 {[%clk 0:02:12]} 13. Ne4 {[%clk 0:02:38]}  Be7 {[%clk 0:02:07]} 14. Bf4 {[%clk 0:02:38]}  Nc6 {[%clk 0:01:55]} 15. Rab1 {[%clk 0:02:36]}  O-O {[%clk 0:01:53]} 16. Nd6 {[%clk 0:02:35]}  e5 {[%clk 0:01:19]} 17. Be3 {[%clk 0:02:31]}  Rd8 {[%clk 0:01:15]} 18. Nxc8 {[%clk 0:02:20]}  Raxc8 {[%clk 0:01:16]} 19. Rxd8+ {[%clk 0:02:18]}  Nxd8 {[%clk 0:01:09]} 20. h4 {[%clk 0:02:10]}  b6 {[%clk 0:01:05]} 21. Rd1 {[%clk 0:02:06]}  Ne6 {[%clk 0:01:04]} 22. Rd5 {[%clk 0:02:04]}  Bc5 {[%clk 0:00:56]} 23. Rxe5 {[%clk 0:01:59]}  Bxe3 {[%clk 0:00:55]} 24. Rxe3 {[%clk 0:02:00]}  Rc5 {[%clk 0:00:53]} 25. Bh3 {[%clk 0:01:59]}  Rc6 {[%clk 0:00:51]} 26. Kg2 {[%clk 0:01:50]}  Kf8 {[%clk 0:00:49]} 27. Kg3 {[%clk 0:01:49]}  Ke7 {[%clk 0:00:48]} 28. f4 {[%clk 0:01:48]}  g6 {[%clk 0:00:49]} 29. f5 {[%clk 0:01:48]}  gxf5 {[%clk 0:00:49]} 30. Bxf5 {[%clk 0:01:49]}  b5 {[%clk 0:00:43]} 31. Bxh7 {[%clk 0:01:46]}  a5 {[%clk 0:00:43]} 32. a3 {[%clk 0:01:42]}  Kf8 {[%clk 0:00:40]} 33. Bc2 {[%clk 0:01:22]}  Rd6 {[%clk 0:00:37]} 34. Re5 {[%clk 0:01:21]}  Rd2 {[%clk 0:00:34]} 35. Bh7 {[%clk 0:01:15]}  Kg7 {[%clk 0:00:28]} 36. Bf5 {[%clk 0:01:15]}  Rb2 {[%clk 0:00:29]} 37. Bxe6 {[%clk 0:01:14]}  fxe6 {[%clk 0:00:29]} 38. h5 {[%clk 0:01:14]}  Rb3 {[%clk 0:00:26]} 39. h6+ {[%clk 0:01:09]}  Kh7 {[%clk 0:00:25]} 40. Rxe6 {[%clk 0:01:08]}  Rxc3+ {[%clk 0:00:24]} 41. Kg4 {[%clk 0:01:09]}  Rxa3 {[%clk 0:00:23]} 42. Re7+ {[%clk 0:01:09]}  Kg8 {[%clk 0:00:19]} 43. g6 {[%clk 0:01:07]} 1-0


[Site "https://www.chess.com"]

[Event "Titled Tuesday Blitz February 07 Late 2023"]
[White "Makridis, Dimitrios"]
[Black "Dubov, Daniil"]
[WhiteFideId "25864475"]
[BlackFideId "24126055"]
[WhiteElo "2356"]
[BlackElo "2708"]
[Result "1-0"]
[Round "09"]
[TimeControl "180+2"]
[Date "2023.02.07"]
[WhiteClock "0:00:07"]
[BlackClock "0:00:01"]

1. e4 {[%clk 0:02:57]}  d5 {[%clk 0:03:00]} 2. exd5 {[%clk 0:02:57]}  Qxd5 {[%clk 0:03:01]} 3. Nc3 {[%clk 0:02:58]}  Qd6 {[%clk 0:03:02]} 4. d4 {[%clk 0:02:51]}  Nf6 {[%clk 0:03:02]} 5. Nf3 {[%clk 0:02:52]}  Nc6 {[%clk 0:03:03]} 6. Bb5 {[%clk 0:02:41]}  a6 {[%clk 0:02:55]} 7. Ba4 {[%clk 0:02:40]}  b5 {[%clk 0:02:38]} 8. Bb3 {[%clk 0:02:39]}  Bb7 {[%clk 0:02:38]} 9. O-O {[%clk 0:02:36]}  e6 {[%clk 0:02:31]} 10. d5 {[%clk 0:02:33]}  exd5 {[%clk 0:02:30]} 11. Nxd5 {[%clk 0:02:33]}  O-O-O {[%clk 0:02:09]} 12. Bf4 {[%clk 0:02:32]}  Qc5 {[%clk 0:02:09]} 13. Be3 {[%clk 0:02:33]}  Rxd5 {[%clk 0:02:03]} 14. Bxc5 {[%clk 0:02:26]}  Rxd1 {[%clk 0:02:02]} 15. Raxd1 {[%clk 0:02:26]}  Bxc5 {[%clk 0:02:02]} 16. Bxf7 {[%clk 0:02:27]}  Rf8 {[%clk 0:01:58]} 17. Be6+ {[%clk 0:02:27]}  Kb8 {[%clk 0:01:59]} 18. c3 {[%clk 0:02:25]}  Nd8 {[%clk 0:01:51]} 19. Bb3 {[%clk 0:02:18]}  Bxf3 {[%clk 0:01:52]} 20. gxf3 {[%clk 0:02:18]}  Bd6 {[%clk 0:01:48]} 21. Rfe1 {[%clk 0:02:16]}  Nc6 {[%clk 0:01:47]} 22. a4 {[%clk 0:02:02]}  Ne5 {[%clk 0:01:45]} 23. Re3 {[%clk 0:02:03]}  Nh5 {[%clk 0:01:41]} 24. axb5 {[%clk 0:01:59]}  Nf4 {[%clk 0:01:11]} 25. bxa6 {[%clk 0:01:51]}  Ka7 {[%clk 0:01:11]} 26. Bc2 {[%clk 0:01:43]}  Rf6 {[%clk 0:00:53]} 27. b4 {[%clk 0:01:33]}  Kxa6 {[%clk 0:00:47]} 28. Rd4 {[%clk 0:00:53]}  Ne6 {[%clk 0:00:38]} 29. Rd5 {[%clk 0:00:29]}  Nxf3+ {[%clk 0:00:34]} 30. Kf1 {[%clk 0:00:24]}  Nxh2+ {[%clk 0:00:29]} 31. Ke1 {[%clk 0:00:24]}  Ng4 {[%clk 0:00:24]} 32. Ra5+ {[%clk 0:00:22]}  Kb6 {[%clk 0:00:24]} 33. Re2 {[%clk 0:00:16]}  Nxf2 {[%clk 0:00:12]} 34. Ba4 {[%clk 0:00:16]}  Nd3+ {[%clk 0:00:08]} 35. Kd2 {[%clk 0:00:16]}  Ndf4 {[%clk 0:00:05]} 36. Rb5+ {[%clk 0:00:16]}  Ka7 {[%clk 0:00:05]} 37. Ra5+ {[%clk 0:00:16]}  Kb7 {[%clk 0:00:06]} 38. Re1 {[%clk 0:00:15]}  c6 {[%clk 0:00:05]} 39. Ra1 {[%clk 0:00:15]}  Kc7 {[%clk 0:00:04]} 40. Ra7+ {[%clk 0:00:13]}  Kd8 {[%clk 0:00:05]} 41. Bxc6 {[%clk 0:00:13]}  Nc7 {[%clk 0:00:05]} 42. b5 {[%clk 0:00:12]}  Bc5 {[%clk 0:00:05]} 43. Rb7 {[%clk 0:00:12]}  Rd6+ {[%clk 0:00:05]} 44. Kc2 {[%clk 0:00:12]}  Nfe6 {[%clk 0:00:05]} 45. Rf1 {[%clk 0:00:08]}  g5 {[%clk 0:00:03]} 46. Rf7 {[%clk 0:00:08]}  Kc8 {[%clk 0:00:03]} 47. Rxh7 {[%clk 0:00:07]}  Rd8 {[%clk 0:00:02]} 48. b6 {[%clk 0:00:06]}  Na6 {[%clk 0:00:02]} 49. Ra7 {[%clk 0:00:06]}  Bxb6 {[%clk 0:00:01]} 50. Ra8+ {[%clk 0:00:06]}  Nb8 {[%clk 0:00:01]} 51. Bb7# {[%clk 0:00:07]} 1-0


[Site "https://www.chess.com"]